lending/lending_fUSD_20250114
["ID","MTS","AMOUNT","RATE_DAILY","PERIOD"]
[348931230,1736875853512,-499.80439021,0.0001052,2]
[348931231,1736875853522,-500.0,0.0001052,2]
[348931232,1736875853533,-500.0,0.0001052,2]
[348931233,1736875853543,-500.0,0.0001052,2]
[348931234,1736875853553,-500.0,0.0001052,2]
[348931235,1736875853562,-500.0,0.0001052,2]
[348931236,1736875853572,-500.0,0.0001052,2]
[348931237,1736875853582,-500.0,0.0001052,2]
[348931238,1736875853592,-500.0,0.0001052,2]
[348931239,1736875853602,-500.0,0.0001052,2]
[348931240,1736875853612,-500.0,0.0001052,2]
[348931241,1736875853623,-500.0,0.0001052,2]
[348931242,1736875853632,-500.0,0.0001052,2]
[348931243,1736875853642,-500.0,0.0001052,2]
[348931244,1736875853652,-500.0,0.0001052,2]
[348931245,1736875853662,-500.0,0.0001052,2]
[348931246,1736875853671,-500.0,0.0001052,2]
[348931247,1736875853681,-500.0,0.0001052,2]
[348931248,1736875853691,-500.0,0.0001052,2]
[348931249,1736875853700,-500.0,0.0001052,2]
[348931250,1736875853713,-256.98639979,0.0001052,2]
[348931251,1736875853723,-500.0,0.0001052,2]
[348931252,1736875853732,-500.0,0.0001052,2]
[348931253,1736875853742,-500.0,0.0001052,2]
[348931254,1736875853752,-500.0,0.0001052,2]
[348931255,1736875853762,-500.0,0.0001052,2]
[348931256,1736875853772,-500.0,0.0001052,2]
[348931257,1736875853783,-500.0,0.0001052,2]
[348931258,1736875853794,-500.0,0.0001052,2]
[348931259,1736875853805,-500.0,0.0001052,2]
[348931260,1736875853815,-500.0,0.0001052,2]
[348931261,1736875853824,-500.0,0.0001052,2]
[348931262,1736875853834,-500.0,0.0001052,2]
[348931263,1736875853844,-500.0,0.0001052,2]
[348931264,1736875853854,-500.0,0.0001052,2]
[348931265,1736875853864,-500.0,0.0001052,2]
[348931266,1736875853874,-507.22222886,0.0001052,2]
[348931267,1736875853884,-500.0,0.0001052,2]
[348931268,1736875853894,-500.0,0.0001052,2]
[348931269,1736875853904,-500.0,0.0001052,2]
[348931270,1736875853914,-500.0,0.0001052,2]
[348931271,1736875853924,-179.0482255,0.0001052,2]
[348931272,1736875853934,-500.0,0.0001052,2]
[348931273,1736875853943,-500.0,0.0001052,2]
[348931274,1736875853953,-500.0,0.0001052,2]
[348931275,1736875853968,-500.0,0.0001052,2]
[348931276,1736875853978,-500.0,0.0001052,2]
[348931277,1736875853987,-500.0,0.0001052,2]
[348931278,1736875853997,-500.0,0.0001052,2]
[348931279,1736875854008,-506.95641962,0.0001052,2]
[348931280,1736875854017,-500.0,0.0001052,2]
[348931281,1736875854027,-500.0,0.0001052,2]
[348931282,1736875854037,-500.0,0.0001052,2]
[348931283,1736875854047,-500.0,0.0001052,2]
[348931284,1736875854057,-3792.62,0.0001052,2]
[348931285,1736875854067,-500.0,0.0001052,2]
[348931286,1736875854076,-500.0,0.0001052,2]
[348931287,1736875854086,-473.75265495,0.0001052,2]
[348931288,1736875854095,-517.46073739,0.0001052,2]
[348931289,1736875854105,-500.0,0.0001052,2]
[348931290,1736875854114,-500.0,0.0001052,2]
[348931291,1736875854124,-500.0,0.0001052,2]
[348931292,1736875854133,-500.0,0.0001052,2]
[348931293,1736875854143,-500.0,0.0001052,2]
[348931294,1736875854152,-500.0,0.0001052,2]
[348931295,1736875854162,-500.0,0.0001052,2]
[348931296,1736875854172,-500.0,0.0001052,2]
[348931297,1736875854182,-408.31234725,0.0001052,2]
[348931298,1736875854192,-500.0,0.0001052,2]
[348931299,1736875854202,-500.0,0.0001052,2]
[348931300,1736875854215,-500.0,0.0001052,2]
[348931301,1736875854225,-500.0,0.0001052,2]
[348931302,1736875854235,-500.0,0.0001052,2]
[348931303,1736875854245,-471.411506,0.0001052,2]
[348931304,1736875854256,-500.0,0.00010521,2]
[348931305,1736875854265,-332.30185545,0.00010521,2]
[348931306,1736875854276,-500.0,0.00010521,2]
[348931307,1736875854285,-500.0,0.00010521,2]
[348931308,1736875854295,-500.0,0.00010521,2]
[348931309,1736875854304,-500.0,0.00010521,2]
[348931310,1736875854314,-500.0,0.00010521,2]
[348931311,1736875854324,-500.0,0.00010521,2]
[348931312,1736875854334,-500.0,0.00010521,2]
[348931313,1736875854343,-500.0,0.00010521,2]
[348931314,1736875854353,-500.0,0.00010521,2]
[348931315,1736875854364,-500.0,0.00010521,2]
[348931316,1736875854373,-500.0,0.00010521,2]
[348931317,1736875854383,-500.0,0.00010521,2]
[348931318,1736875854393,-503.35182754,0.00010521,2]
[348931319,1736875854402,-500.0,0.00010521,2]
[348931320,1736875854412,-500.0,0.00010521,2]
[348931321,1736875854422,-500.0,0.00010521,2]
[348931322,1736875854433,-2554.81,0.00010521,2]
[348931323,1736875854444,-995.59,0.00010521,2]
[348931324,1736875854462,-568.0,0.00010521,2]
[348931325,1736875854472,-922.33,0.00010521,2]
[348931326,1736875854482,-543.06,0.00010521,2]
[348931327,1736875854492,-1714.59,0.00010521,2]
[348931328,1736875854503,-619.41,0.00010521,2]
[348931329,1736875854514,-168.98,0.00010533,2]
[348931330,1736875854524,-746.81,0.00010546,2]
[348931331,1736875854534,-3046.11,0.00010546,2]
[348931332,1736875854544,-796.81,0.00010546,2]
[348931333,1736875854554,-1545.1,0.00010546,2]
[348931334,1736875854564,-5189.42,0.00010546,2]
[348931335,1736875854574,-500.0,0.00010546,2]
[348931336,1736875854584,-768.07,0.00010546,2]
[348931337,1736875854593,-787.79,0.00010546,2]
[348931338,1736875854604,-500.0,0.00010546,2]
[348931339,1736875854613,-1392.44,0.00010546,2]
[348931340,1736875854624,-544.06,0.00010546,2]
[348931341,1736875854635,-2279.15,0.00010546,2]
[348931342,1736875854645,-893.35,0.00010546,2]
[348931343,1736875854655,-546.12,0.00010546,2]
[348931344,1736875854666,-1468.46,0.00010546,2]
[348931345,1736875854675,-1107.06,0.00010546,2]
[348931346,1736875854685,-500.0,0.00010547,2]
[348931347,1736875854694,-1541.83,0.00010547,2]
[348931348,1736875854704,-1920.48,0.00010547,2]
[348931349,1736875854716,-1444.02,0.00010547,2]
[348931350,1736875854726,-500.0,0.00010547,2]
[348931351,1736875854736,-843.52,0.00010547,2]
[348931352,1736875854745,-2046.78,0.00010547,2]
[348931353,1736875854756,-500.0,0.00010547,2]
[348931354,1736875854767,-500.0,0.00010547,2]
[348931355,1736875854780,-500.0,0.00010547,2]
[348931356,1736875854792,-500.0,0.00010547,2]
[348931357,1736875854803,-720.75,0.00010547,2]
[348931358,1736875854814,-500.0,0.00010547,2]
[348931359,1736875854825,-1599.42,0.00010547,2]
[348931360,1736875854836,-500.0,0.00010547,2]
[348931361,1736875854846,-500.0,0.00010547,2]
[348931362,1736875854856,-500.0,0.00010547,2]
[348931363,1736875854866,-500.0,0.00010547,2]
[348931364,1736875854876,-500.88165732,0.00010573,2]
[348931365,1736875854886,-2315.27551923,0.00010617,2]
[348931366,1736875854896,-4451.64897635,0.00010683,2]
[348931367,1736875854906,-12285.68983286,0.00010683,2]
[348931368,1736875854916,-161.79765898,0.00010694,2]
[348931369,1736875854926,-150.83,0.00010737,2]
[348931370,1736875854936,-2315.27551923,0.00010741,2]
[348931371,1736875854947,-500.0,0.00010783,2]
[348931372,1736875854957,-500.0,0.00010783,2]
[348931373,1736875854970,-500.0,0.00010783,2]
[348931374,1736875854980,-500.0,0.00010783,2]
[348931375,1736875854989,-500.0,0.00010783,2]
[348931376,1736875854999,-500.0,0.00010783,2]
[348931377,1736875855009,-500.0,0.00010783,2]
[348931378,1736875855019,-500.0,0.00010783,2]
[348931379,1736875855028,-500.0,0.00010783,2]
[348931380,1736875855038,-500.0,0.00010783,2]
[348931381,1736875855048,-500.0,0.00010783,2]
[348931382,1736875855058,-500.0,0.00010783,2]
[348931383,1736875855068,-500.0,0.00010783,2]
[348931384,1736875855078,-500.0,0.00010783,2]
[348931385,1736875855087,-500.0,0.00010783,2]
[348931386,1736875855099,-500.0,0.00010783,2]
[348931387,1736875855110,-679.78,0.00010783,2]
[348931388,1736875855121,-500.0,0.00010783,2]
[348931389,1736875855131,-500.0,0.00010783,2]
[348931390,1736875855142,-622.15,0.00010783,2]
[348931391,1736875855153,-500.0,0.00010783,2]
[348931392,1736875855164,-500.0,0.00010783,2]
[348931393,1736875855176,-500.0,0.00010783,2]
[348931394,1736875855188,-500.0,0.00010783,2]
[348931395,1736875855198,-500.0,0.00010783,2]
[348931396,1736875855214,-612.08,0.00010783,2]
[348931397,1736875855224,-500.0,0.00010783,2]
[348931398,1736875855233,-500.0,0.00010783,2]
[348931399,1736875855243,-500.0,0.00010783,2]
[348931400,1736875855254,-500.0,0.00010783,2]
[348931401,1736875855265,-500.0,0.00010783,2]
[348931402,1736875855276,-500.0,0.00010783,2]
[348931403,1736875855286,-500.0,0.00010783,2]
[348931404,1736875855297,-529.51,0.00010783,2]
[348931405,1736875855308,-500.0,0.00010783,2]
[348931406,1736875855320,-500.0,0.00010783,2]
[348931407,1736875855330,-500.0,0.00010783,2]
[348931408,1736875855341,-500.0,0.00010783,2]
[348931409,1736875855352,-500.0,0.00010783,2]
[348931410,1736875855363,-500.0,0.00010783,2]
[348931411,1736875855374,-500.0,0.00010783,2]
[348931412,1736875855384,-591.09,0.00010783,2]
[348931413,1736875855395,-500.0,0.00010783,2]
[348931414,1736875855406,-500.0,0.00010783,2]
[348931415,1736875855417,-500.0,0.00010783,2]
[348931416,1736875855617,-500.0,0.00010783,2]
[348931417,1736875855628,-683.19,0.00010783,2]
[348931418,1736875855638,-500.0,0.00010783,2]
[348931419,1736875855649,-500.0,0.00010783,2]
[348931420,1736875855659,-500.0,0.00010783,2]
[348931421,1736875855668,-500.0,0.00010783,2]
[348931422,1736875855678,-500.0,0.00010783,2]
[348931423,1736875855687,-500.0,0.00010783,2]
[348931424,1736875855697,-500.0,0.00010783,2]
[348931425,1736875855707,-500.0,0.00010783,2]
[348931426,1736875855718,-500.0,0.00010783,2]
[348931427,1736875855728,-500.0,0.00010783,2]
[348931428,1736875855738,-500.0,0.00010783,2]
[348931429,1736875855749,-509.92,0.00010783,2]
[348931430,1736875855758,-500.0,0.00010783,2]
[348931431,1736875855768,-500.0,0.00010783,2]
[348931432,1736875855780,-500.0,0.00010783,2]
[348931433,1736875855791,-500.0,0.00010783,2]
[348931434,1736875855801,-579.7,0.00010783,2]
[348931435,1736875855810,-549.57,0.00010783,2]
[348931436,1736875855820,-500.0,0.00010783,2]
[348931437,1736875855829,-3227.26,0.00010783,2]
[348931438,1736875855839,-619.05,0.00010783,2]
[348931439,1736875855849,-500.0,0.00010783,2]
[348931440,1736875855859,-500.0,0.00010783,2]
[348931441,1736875855868,-500.0,0.00010783,2]
[348931442,1736875855877,-2759.28,0.00010783,2]
[348931443,1736875855887,-500.0,0.00010783,2]
[348931444,1736875855896,-500.0,0.00010783,2]
[348931445,1736875855907,-500.0,0.00010783,2]
[348931446,1736875855916,-500.0,0.00010783,2]
[348931447,1736875855926,-500.0,0.00010783,2]
[348931448,1736875855936,-603.0,0.00010783,2]
[348931449,1736875855945,-2198.48,0.00010783,2]
[348931450,1736875855955,-500.0,0.00010783,2]
[348931451,1736875855966,-500.0,0.00010783,2]
[348931452,1736875855975,-500.0,0.00010783,2]
[348931453,1736875855984,-500.0,0.00010783,2]
[348931454,1736875855994,-500.0,0.00010783,2]
[348931455,1736875856004,-594.45,0.00010783,2]
[348931456,1736875856013,-500.0,0.00010783,2]
[348931457,1736875856022,-500.0,0.00010783,2]
[348931458,1736875856032,-500.0,0.00010783,2]
[348931459,1736875856041,-500.0,0.00010783,2]
[348931460,1736875856051,-500.0,0.00010783,2]
[348931461,1736875856061,-747.11,0.00010783,2]
[348931462,1736875856070,-500.0,0.00010783,2]
[348931463,1736875856081,-500.0,0.00010783,2]
[348931464,1736875856091,-500.0,0.00010783,2]
[348931465,1736875856101,-500.0,0.00010783,2]
[348931466,1736875856111,-500.0,0.00010784,2]
[348931467,1736875856121,-500.0,0.00010784,2]
[348931468,1736875856131,-754.19,0.00010784,2]
[348931469,1736875856141,-762.15,0.00010784,2]
[348931470,1736875856151,-500.0,0.00010784,2]
[348931471,1736875856161,-901.26,0.00010784,2]
[348931472,1736875856170,-1975.09,0.00010784,2]
[348931473,1736875856181,-1064.08,0.00010784,2]
[348931474,1736875856191,-822.58,0.00010784,2]
[348931475,1736875856200,-503.447588,0.00010784,2]
[348931476,1736875856212,-550.786251,0.00010784,2]
[348931477,1736875856221,-2465.53,0.00010784,2]
[348931478,1736875856231,-816.8,0.00010784,2]
[348931479,1736875856240,-500.0,0.00010784,2]
[348931480,1736875856251,-500.0,0.00010784,2]
[348931481,1736875856262,-500.0,0.00010784,2]
[348931482,1736875856271,-2817.5,0.00010784,2]
[348931483,1736875856281,-904.37,0.00010784,2]
[348931484,1736875856291,-500.0,0.00010784,2]
[348931485,1736875856301,-500.0,0.00010784,2]
[348931486,1736875856312,-2129.46,0.00010784,2]
[348931487,1736875856322,-500.0,0.00010784,2]
[348931488,1736875856332,-756.05,0.00010784,2]
[348931489,1736875856341,-1025.65,0.00010784,2]
[348931490,1736875856352,-1202.65,0.00010784,2]
[348931491,1736875856362,-933.8,0.00010784,2]
[348931492,1736875856375,-500.0,0.00010785,2]
[348931493,1736875856385,-568.570837,0.00010785,2]
[348931494,1736875856395,-553.68,0.00010785,2]
[348931495,1736875856405,-500.0,0.00010785,2]
[348931496,1736875856414,-500.0,0.00010785,2]
[348931497,1736875856425,-500.0,0.00010785,2]
[348931498,1736875856436,-500.0,0.00010785,2]
[348931499,1736875856446,-547.16,0.00010785,2]
[348931500,1736875856462,-500.0,0.00010785,2]
[348931501,1736875856473,-500.0,0.00010785,2]
[348931502,1736875856484,-500.0,0.00010785,2]
[348931503,1736875856498,-500.0,0.00010785,2]
[348931504,1736875856508,-500.0,0.00010785,2]
[348931505,1736875856518,-500.0,0.00010785,2]
[348931506,1736875856528,-500.0,0.00010785,2]
[348931507,1736875856538,-500.0,0.00010785,2]
[348931508,1736875856549,-500.0,0.00010785,2]
[348931509,1736875856558,-500.0,0.00010785,2]
[348931510,1736875856568,-500.0,0.00010785,2]
[348931511,1736875856578,-500.0,0.00010785,2]
[348931512,1736875856587,-500.0,0.00010785,2]
[348931513,1736875856597,-500.0,0.00010785,2]
[348931514,1736875856607,-500.0,0.00010785,2]
[348931515,1736875856617,-500.0,0.00010785,2]
[348931516,1736875856628,-500.0,0.00010785,2]
[348931517,1736875856637,-500.0,0.00010785,2]
[348931518,1736875856647,-500.0,0.00010785,2]
[348931519,1736875856656,-500.0,0.00010785,2]
[348931520,1736875856667,-500.0,0.00010785,2]
[348931521,1736875856676,-500.0,0.00010785,2]
[348931522,1736875856686,-500.0,0.00010785,2]
[348931523,1736875856696,-500.0,0.00010785,2]
[348931524,1736875856706,-500.0,0.00010785,2]
[348931525,1736875856717,-500.0,0.00010785,2]
[348931526,1736875856726,-619.17,0.00010785,2]
[348931527,1736875856737,-500.0,0.00010785,2]
[348931528,1736875856746,-500.0,0.00010785,2]
[348931529,1736875856756,-500.0,0.00010785,2]
[348931530,1736875856766,-500.0,0.00010785,2]
[348931531,1736875856777,-509.59,0.00010785,2]
[348931532,1736875856788,-500.0,0.00010785,2]
[348931533,1736875856798,-500.0,0.00010785,2]
[348931534,1736875856809,-561.13,0.00010785,2]
[348931535,1736875856818,-500.0,0.00010785,2]
[348931536,1736875856828,-500.0,0.00010785,2]
[348931537,1736875856839,-500.0,0.00010785,2]
[348931538,1736875856849,-500.0,0.00010785,2]
[348931539,1736875856859,-500.0,0.00010785,2]
[348931540,1736875856868,-500.0,0.00010785,2]
[348931541,1736875856878,-500.0,0.00010785,2]
[348931542,1736875856889,-500.0,0.00010785,2]
[348931543,1736875856899,-500.0,0.00010785,2]
[348931544,1736875856909,-500.0,0.00010785,2]
[348931545,1736875856919,-500.0,0.00010785,2]
[348931546,1736875856928,-500.0,0.00010785,2]
[348931547,1736875856937,-500.0,0.00010785,2]
[348931548,1736875856947,-500.0,0.00010785,2]
[348931549,1736875856957,-612.61,0.00010785,2]
[348931550,1736875856968,-500.0,0.00010785,2]
[348931551,1736875856977,-500.0,0.00010785,2]
[348931552,1736875856988,-500.0,0.00010785,2]
[348931553,1736875856997,-500.0,0.00010785,2]
[348931554,1736875857007,-500.0,0.00010785,2]
[348931555,1736875857018,-593.57,0.00010785,2]
[348931556,1736875857027,-1141.76,0.00010785,2]
[348931557,1736875857037,-500.0,0.00010785,2]
[348931558,1736875857047,-500.0,0.00010785,2]
[348931559,1736875857058,-500.0,0.00010785,2]
[348931560,1736875857068,-648.94015008,0.00010785,2]
[348931561,1736875857078,-998.16,0.00010785,2]
[348931562,1736875857087,-500.0,0.00010785,2]
[348931563,1736875857097,-500.0,0.00010785,2]
[348931564,1736875857107,-889.85,0.00010785,2]
[348931565,1736875857118,-500.0,0.00010785,2]
[348931566,1736875857128,-1988.28,0.00010785,2]
[348931567,1736875857139,-420.36,0.00010785,2]
[348931568,1736875857149,-6836.5,0.00010785,2]
[348931569,1736875857159,-500.0,0.00010785,2]
[348931570,1736875857169,-616.95,0.00010785,2]
[348931571,1736875857179,-500.0,0.00010785,2]
[348931572,1736875857189,-1029.1,0.00010785,2]
[348931573,1736875857198,-529.71,0.00010785,2]
[348931574,1736875857208,-500.0,0.00010785,2]
[348931575,1736875857219,-1374.62,0.00010785,2]
[348931576,1736875857229,-622.61,0.00010785,2]
[348931577,1736875857239,-663.0,0.00010785,2]
[348931578,1736875857249,-500.0,0.00010785,2]
[348931579,1736875857258,-500.0,0.00010785,2]
[348931580,1736875857267,-522.75,0.00010785,2]
[348931581,1736875857276,-500.0,0.00010785,2]
[348931582,1736875857286,-500.0,0.00010785,2]
[348931583,1736875857296,-883.89,0.00010785,2]
[348931584,1736875857306,-500.0,0.00010785,2]
[348931585,1736875857315,-500.0,0.00010785,2]
[348931586,1736875857325,-1455.18,0.00010785,2]
[348931587,1736875857335,-878.69,0.00010785,2]
[348931588,1736875857345,-1458.25,0.00010785,2]
[348931589,1736875857355,-500.0,0.00010785,2]
[348931590,1736875857365,-500.0,0.00010785,2]
[348931591,1736875857374,-500.0,0.00010794,2]
[348931592,1736875857385,-500.0,0.00010794,2]
[348931593,1736875857395,-500.0,0.00010794,2]
[348931594,1736875857406,-500.0,0.00010794,2]
[348931595,1736875857416,-500.0,0.00010794,2]
[348931596,1736875857425,-500.0,0.00010794,2]
[348931597,1736875857435,-500.0,0.00010794,2]
[348931598,1736875857445,-500.0,0.00010794,2]
[348931599,1736875857455,-500.0,0.00010794,2]
[348931600,1736875857469,-500.0,0.00010794,2]
[348931601,1736875857479,-540.28,0.00010794,2]
[348931602,1736875857488,-500.0,0.00010794,2]
[348931603,1736875857499,-500.0,0.00010794,2]
[348931604,1736875857509,-500.0,0.00010794,2]
[348931605,1736875857519,-500.0,0.00010794,2]
[348931606,1736875857528,-500.0,0.00010794,2]
[348931607,1736875857539,-500.0,0.00010794,2]
[348931608,1736875857549,-500.0,0.00010794,2]
[348931609,1736875857559,-500.0,0.00010794,2]
[348931610,1736875857568,-500.0,0.00010794,2]
[348931611,1736875857578,-500.0,0.00010794,2]
[348931612,1736875857587,-500.0,0.00010794,2]
[348931613,1736875857597,-500.0,0.00010794,2]
[348931614,1736875857607,-500.0,0.00010794,2]
[348931615,1736875857618,-499.62002217,0.00010794,2]
[348931616,1736875857630,-464.16164061,0.00010794,2]
[348931617,1736875857641,-500.0,0.00010794,2]
[348931618,1736875857651,-500.0,0.00010794,2]
[348931619,1736875857661,-500.0,0.00010794,2]
[348931620,1736875857670,-500.0,0.00010794,2]
[348931621,1736875857680,-500.0,0.00010794,2]
[348931622,1736875857689,-500.0,0.00010794,2]
[348931623,1736875857699,-500.0,0.00010794,2]
[348931624,1736875857709,-500.0,0.00010794,2]
[348931625,1736875857720,-500.0,0.00010794,2]
[348931626,1736875857730,-500.0,0.00010794,2]
[348931627,1736875857740,-500.0,0.00010794,2]
[348931628,1736875857750,-500.0,0.00010794,2]
[348931629,1736875857761,-500.0,0.00010794,2]
[348931630,1736875857772,-500.0,0.00010794,2]
[348931631,1736875857784,-500.0,0.00010794,2]
[348931632,1736875857794,-500.0,0.00010794,2]
[348931633,1736875857804,-500.0,0.00010794,2]
[348931634,1736875857813,-500.0,0.00010794,2]
[348931635,1736875857823,-500.0,0.00010794,2]
[348931636,1736875857833,-500.0,0.00010794,2]
[348931637,1736875857843,-500.0,0.00010794,2]
[348931638,1736875857853,-500.0,0.00010794,2]
[348931639,1736875857862,-500.0,0.00010794,2]
[348931640,1736875857872,-500.0,0.00010794,2]
[348931641,1736875857882,-500.0,0.00010794,2]
[348931642,1736875857892,-500.0,0.00010794,2]
[348931643,1736875857902,-500.0,0.00010794,2]
[348931644,1736875857912,-500.0,0.00010794,2]
[348931645,1736875857922,-500.0,0.00010794,2]
[348931646,1736875857932,-500.0,0.00010794,2]
[348931647,1736875857942,-500.0,0.00010794,2]
[348931648,1736875857953,-500.0,0.00010794,2]
[348931649,1736875857963,-500.0,0.00010794,2]
[348931650,1736875857973,-3792.62,0.00010794,2]
[348931651,1736875857983,-500.0,0.00010794,2]
[348931652,1736875857993,-579.59373616,0.00010794,2]
[348931653,1736875858057,-500.0,0.00010794,2]
[348931654,1736875858068,-500.0,0.00010794,2]
[348931655,1736875858077,-500.0,0.00010794,2]
[348931656,1736875858087,-500.0,0.00010794,2]
[348931657,1736875858098,-500.0,0.00010794,2]
[348931658,1736875858108,-500.0,0.00010794,2]
[348931659,1736875858118,-500.0,0.00010794,2]
[348931660,1736875858129,-500.0,0.00010794,2]
[348931661,1736875858139,-500.0,0.00010794,2]
[348931662,1736875858150,-500.0,0.00010794,2]
[348931663,1736875858160,-631.46145658,0.00010794,2]
[348931664,1736875858169,-500.0,0.00010794,2]
[348931665,1736875858178,-500.0,0.00010795,2]
[348931666,1736875858188,-500.0,0.00010795,2]
[348931667,1736875858197,-500.0,0.00010795,2]
[348931668,1736875858207,-500.0,0.00010795,2]
[348931669,1736875858218,-500.0,0.00010795,2]
[348931670,1736875858227,-271.73345919,0.00010795,2]
[348931671,1736875858237,-500.0,0.00010795,2]
[348931672,1736875858246,-500.0,0.00010795,2]
[348931673,1736875858255,-559.07,0.00010795,2]
[348931674,1736875858265,-500.0,0.00010795,2]
[348931675,1736875858274,-2554.81,0.00010795,2]
[348931676,1736875858284,-995.59,0.00010795,2]
[348931677,1736875858293,-568.0,0.00010795,2]
[348931678,1736875858302,-922.33,0.00010795,2]
[348931679,1736875858312,-543.06,0.00010795,2]
[348931680,1736875858321,-1714.59,0.00010795,2]
[348931681,1736875858330,-500.0,0.00010797,2]
[348931682,1736875858339,-746.81,0.0001082,2]
[348931683,1736875858349,-3046.11,0.0001082,2]
[348931684,1736875858358,-796.81,0.0001082,2]
[348931685,1736875858367,-1545.1,0.0001082,2]
[348931686,1736875858377,-5189.42,0.0001082,2]
[348931687,1736875858386,-768.07,0.0001082,2]
[348931688,1736875858395,-787.79,0.0001082,2]
[348931689,1736875858405,-500.0,0.0001082,2]
[348931690,1736875858415,-1392.44,0.0001082,2]
[348931691,1736875858425,-544.06,0.0001082,2]
[348931692,1736875858435,-2279.15,0.0001082,2]
[348931693,1736875858444,-893.35,0.0001082,2]
[348931694,1736875858456,-546.12,0.0001082,2]
[348931695,1736875858471,-1468.46,0.0001082,2]
[348931696,1736875858481,-1107.06,0.0001082,2]
[348931697,1736875858490,-500.0,0.00010821,2]
[348931698,1736875858503,-1541.83,0.00010821,2]
[348931699,1736875858513,-1920.48,0.00010821,2]
[348931700,1736875858523,-1444.02,0.00010821,2]
[348931701,1736875858533,-500.0,0.00010821,2]
[348931702,1736875858547,-843.52,0.00010821,2]
[348931703,1736875858557,-2046.78,0.00010821,2]
[348931704,1736875858567,-500.0,0.00010821,2]
[348931705,1736875858577,-500.0,0.00010821,2]
[348931706,1736875858587,-500.0,0.00010821,2]
[348931707,1736875858596,-500.0,0.00010821,2]
[348931708,1736875858606,-500.0,0.00010821,2]
[348931709,1736875858616,-720.75,0.00010821,2]
[348931710,1736875858626,-1599.42,0.00010821,2]
[348931711,1736875858635,-500.0,0.00010821,2]
[348931712,1736875858645,-500.0,0.00010821,2]
[348931713,1736875858654,-500.0,0.00010821,2]
[348931714,1736875858664,-1283.575,0.00010853,2]
[348931715,1736875858673,-2015.0,0.00010853,2]
[348931716,1736875858683,-1244.922,0.00010853,2]
[348931717,1736875858692,-9627.0,0.00010853,2]
[348931718,1736875858702,-635.0,0.00010853,2]
[348931719,1736875858712,-566.0,0.00010853,2]
[348931720,1736875858722,-150.0,0.00010853,2]
[348931721,1736875858732,-1104.0,0.00010853,2]
[348931722,1736875858741,-3896.0,0.00010853,2]
[348931723,1736875858751,-1861.0,0.00010853,2]
[348931724,1736875858761,-150.0,0.00010853,2]
[348931725,1736875858771,-2315.27551923,0.00010865,2]
[348931726,1736875858781,-161.46847612,0.000109,2]
[348931727,1736875858791,-456.62767027,0.000109,2]
[348931728,1736875858800,-182.6510681,0.000109,2]
[348931729,1736875858809,-2228.89781117,0.000109,2]